lending/lending_fUSD_20250210
["ID","MTS","AMOUNT","RATE_DAILY","PERIOD"]
[352667694,1739223046837,-1305.72,0.00011095,2]
[352667695,1739223046847,-500.0,0.00011095,2]
[352667696,1739223046856,-500.0,0.00011095,2]
[352667697,1739223046865,-1052.52,0.00011095,2]
[352667698,1739223046875,-500.0,0.00011095,2]
[352667699,1739223047049,-500.0,0.00011095,2]
[352667700,1739223047084,-788.95,0.00011095,2]
[352667701,1739223047094,-500.0,0.00011095,2]
[352667702,1739223047103,-555.44,0.00011095,2]
[352667703,1739223047112,-500.0,0.00011095,2]
[352667704,1739223047122,-652.37,0.00011095,2]
[352667705,1739223047131,-631.35,0.00011095,2]
[352667706,1739223047142,-599.63,0.00011095,2]
[352667707,1739223047151,-673.04,0.00011095,2]
[352667708,1739223047162,-583.08,0.00011095,2]
[352667709,1739223047172,-500.0,0.00011095,2]
[352667710,1739223047183,-500.0,0.00011095,2]
[352667711,1739223047193,-623.4,0.00011095,2]
[352667712,1739223047203,-500.0,0.00011095,2]
[352667713,1739223047212,-151.0,0.00011095,2]
[352667714,1739223047222,-720.38,0.00011095,2]
[352667715,1739223047232,-500.0,0.00011095,2]
[352667716,1739223047242,-1013.69,0.00011095,2]
[352667717,1739223047252,-608.35,0.00011095,2]
[352667718,1739223047263,-1139.54,0.00011095,2]
[352667719,1739223047274,-569.63,0.00011095,2]
[352667720,1739223047285,-585.97,0.00011095,2]
[352667721,1739223047300,-740.91,0.00011095,2]
[352667722,1739223047310,-664.75,0.00011095,2]
[352667723,1739223047320,-972.16,0.00011095,2]
[352667724,1739223047329,-1065.4,0.00011095,2]
[352667725,1739223047340,-500.0,0.00011095,2]
[352667726,1739223047350,-863.01,0.00011095,2]
[352667727,1739223047360,-717.82,0.00011095,2]
[352667728,1739223047371,-1087.43,0.00011095,2]
[352667729,1739223047382,-500.0,0.00011095,2]
[352667730,1739223047394,-973.87,0.00011095,2]
[352667731,1739223047404,-743.82,0.00011095,2]
[352667732,1739223047415,-887.42,0.00011095,2]
[352667733,1739223047425,-500.0,0.00011095,2]
[352667734,1739223047440,-905.97,0.00011095,2]
[352667735,1739223047450,-500.0,0.00011095,2]
[352667736,1739223047460,-527.45,0.00011095,2]
[352667737,1739223047470,-1037.21,0.00011095,2]
[352667738,1739223047481,-597.08,0.00011095,2]
[352667739,1739223047491,-500.0,0.00011095,2]
[352667740,1739223047501,-500.0,0.00011095,2]
[352667741,1739223047513,-620.66,0.00011095,2]
[352667742,1739223047523,-735.35,0.00011095,2]
[352667743,1739223047533,-1287.24,0.00011095,2]
[352667744,1739223047543,-909.42,0.00011095,2]
[352667745,1739223047552,-757.27,0.00011095,2]
[352667746,1739223047562,-500.0,0.00011095,2]
[352667747,1739223047573,-500.0,0.00011095,2]
[352667748,1739223047583,-841.49,0.00011095,2]
[352667749,1739223047594,-919.55,0.00011095,2]
[352667750,1739223047604,-943.49,0.00011095,2]
[352667751,1739223047615,-500.0,0.00011095,2]
[352667752,1739223047626,-2030.75,0.00011095,2]
[352667753,1739223047637,-571.42,0.00011095,2]
[352667754,1739223047648,-500.0,0.00011095,2]
[352667755,1739223047658,-500.0,0.00011095,2]
[352667756,1739223047669,-500.0,0.00011095,2]
[352667757,1739223047680,-557.82,0.00011095,2]
[352667758,1739223047690,-746.83,0.00011095,2]
[352667759,1739223047700,-500.0,0.00011095,2]
[352667760,1739223047711,-601.73,0.00011095,2]
[352667761,1739223047721,-552.79,0.00011095,2]
[352667762,1739223047731,-1163.2,0.00011095,2]
[352667763,1739223047741,-500.0,0.00011095,2]
[352667764,1739223047751,-500.0,0.00011095,2]
[352667765,1739223047761,-1366.89,0.00011095,2]
[352667766,1739223047772,-669.05,0.00011095,2]
[352667767,1739223047783,-633.42,0.00011095,2]
[352667768,1739223047794,-500.0,0.00011095,2]
[352667769,1739223047805,-1355.06,0.00011095,2]
[352667770,1739223047816,-500.0,0.00011095,2]
[352667771,1739223047827,-798.19,0.00011095,2]
[352667772,1739223047838,-767.68,0.00011095,2]
[352667773,1739223047849,-956.11,0.00011095,2]
[352667774,1739223047861,-1247.02,0.00011095,2]
[352667775,1739223047872,-653.21,0.00011095,2]
[352667776,1739223047883,-1040.78,0.00011095,2]
[352667777,1739223047895,-500.0,0.00011095,2]
[352667778,1739223047905,-2722.64,0.00011095,2]
[352667779,1739223047915,-289.57241981,0.00011095,2]
[352667780,1739223047926,-500.0,0.00011095,2]
[352667781,1739223047937,-841.42,0.00011095,2]
[352667782,1739223047947,-857.39,0.00011095,2]
[352667783,1739223047958,-543.88,0.00011095,2]
[352667784,1739223047969,-500.0,0.00011095,2]
[352667785,1739223047980,-516.86,0.00011095,2]
[352667786,1739223047990,-1306.69,0.00011095,2]
[352667787,1739223048001,-500.0,0.00011095,2]
[352667788,1739223048012,-823.38,0.00011095,2]
[352667789,1739223048023,-1068.88,0.00011095,2]
[352667790,1739223048035,-794.45,0.00011095,2]
[352667791,1739223048046,-1182.28,0.00011095,2]
[352667792,1739223048057,-2807.99,0.00011095,2]
[352667793,1739223048068,-937.89,0.00011095,2]
[352667794,1739223048078,-659.56,0.00011095,2]
[352667795,1739223048088,-3035.63,0.00011095,2]
[352667796,1739223048101,-704.89,0.00011095,2]
[352667797,1739223048112,-500.0,0.00011095,2]
[352667798,1739223048123,-1085.63,0.00011095,2]
[352667799,1739223048134,-1115.34,0.00011095,2]
[352667800,1739223048149,-917.57,0.00011095,2]
[352667801,1739223048161,-1259.41,0.00011095,2]
[352667802,1739223048171,-920.25,0.00011095,2]
[352667803,1739223048183,-1582.48,0.00011095,2]
[352667804,1739223048194,-1775.22,0.00011095,2]
[352667805,1739223048206,-1252.64,0.00011095,2]
[352667806,1739223048217,-2420.96,0.00011095,2]
[352667807,1739223048228,-1334.2,0.00011095,2]
[352667808,1739223048241,-500.0,0.00011095,2]
[352667809,1739223048251,-500.0,0.00011095,2]
[352667810,1739223048262,-2033.8,0.00011095,2]
[352667811,1739223048272,-1179.48,0.00011095,2]
[352667812,1739223048282,-2840.7,0.00011095,2]
[352667813,1739223048292,-1723.03,0.00011095,2]
[352667814,1739223048302,-500.0,0.00011095,2]
[352667815,1739223048313,-1737.54,0.00011095,2]
[352667816,1739223048323,-1753.52,0.00011095,2]
[352667817,1739223048335,-1133.34,0.00011095,2]
[352667818,1739223048345,-648.9,0.00011095,2]
[352667819,1739223048355,-1545.62,0.00011095,2]
[352667820,1739223048366,-1057.61,0.00011095,2]
[352667821,1739223048376,-1228.11,0.00011095,2]
[352667822,1739223048386,-2311.36,0.00011095,2]
[352667823,1739223048399,-601.63,0.00011095,2]
[352667824,1739223048409,-1663.89,0.00011095,2]
[352667825,1739223048419,-1884.52,0.00011095,2]
[352667826,1739223048429,-500.0,0.00011095,2]
[352667827,1739223048444,-402.91,0.00011095,2]
[352667828,1739223048455,-1605.73,0.00011095,2]
[352667829,1739223048466,-1804.94,0.00011095,2]
[352667830,1739223048478,-1854.16,0.00011095,2]
[352667831,1739223048489,-500.0,0.00011095,2]
[352667832,1739223048500,-500.0,0.00011095,2]
[352667833,1739223048510,-1312.62,0.00011095,2]
[352667834,1739223048520,-1499.42,0.00011095,2]
[352667835,1739223048530,-500.0,0.00011095,2]
[352667836,1739223048541,-527.72,0.00011095,2]
[352667837,1739223048551,-2317.0,0.00011095,2]
[352667838,1739223048562,-1427.92,0.00011095,2]
[352667839,1739223048573,-1221.08,0.00011095,2]
[352667840,1739223048582,-548.49,0.00011095,2]
[352667841,1739223048592,-1209.16,0.00011095,2]
[352667842,1739223048602,-638.85,0.00011095,2]
[352667843,1739223048613,-575.16,0.00011095,2]
[352667844,1739223048624,-2522.44,0.00011095,2]
[352667845,1739223048634,-1557.78,0.00011095,2]
[352667846,1739223048646,-993.12,0.00011095,2]
[352667847,1739223048656,-1053.54,0.00011095,2]
[352667848,1739223048667,-6433.54,0.00011095,2]
[352667849,1739223048677,-3725.56,0.00011095,2]
[352667850,1739223048689,-1191.8,0.00011095,2]
[352667851,1739223048699,-1285.63,0.00011095,2]
[352667852,1739223048709,-2977.06,0.00011095,2]
[352667853,1739223048719,-1796.29,0.00011095,2]
[352667854,1739223048729,-1234.63,0.00011095,2]
[352667855,1739223048740,-500.0,0.00011095,2]
[352667856,1739223048751,-1050.97,0.00011095,2]
[352667857,1739223048760,-1352.49,0.00011095,2]
[352667858,1739223048770,-824.9,0.00011095,2]
[352667859,1739223048780,-2745.1,0.00011095,2]
[352667860,1739223048790,-2109.8,0.00011095,2]
[352667861,1739223048800,-765.2,0.00011095,2]
[352667862,1739223048810,-1290.06,0.00011095,2]
[352667863,1739223048820,-500.0,0.00011095,2]
[352667864,1739223048831,-2384.87,0.00011095,2]
[352667865,1739223048841,-878.62,0.00011095,2]
[352667866,1739223048851,-1047.92,0.00011095,2]
[352667867,1739223048862,-1971.62,0.00011095,2]
[352667868,1739223048871,-2188.99,0.00011095,2]
[352667869,1739223048881,-2417.25,0.00011095,2]
[352667870,1739223048891,-739.35,0.00011095,2]
[352667871,1739223048901,-725.42,0.00011095,2]
[352667872,1739223048911,-1047.17,0.00011095,2]
[352667873,1739223048922,-1864.37,0.00011095,2]
[352667874,1739223048932,-1328.89,0.00011095,2]
[352667875,1739223048942,-745.07,0.00011095,2]
[352667876,1739223048952,-500.0,0.00011095,2]
[352667877,1739223048964,-1739.01,0.00011095,2]
[352667878,1739223048975,-1449.43,0.00011095,2]
[352667879,1739223048986,-500.0,0.00011095,2]
[352667880,1739223048996,-500.0,0.00011095,2]
[352667881,1739223049006,-629.86,0.00011095,2]
[352667882,1739223049017,-2281.63,0.00011095,2]
[352667883,1739223049026,-691.23,0.00011095,2]
[352667884,1739223049036,-1364.89,0.00011095,2]
[352667885,1739223049046,-733.12,0.00011095,2]
[352667886,1739223049056,-1429.75,0.00011095,2]
[352667887,1739223049067,-500.0,0.00011095,2]
[352667888,1739223049077,-1892.6,0.00011095,2]
[352667889,1739223049088,-1367.39,0.00011095,2]
[352667890,1739223049097,-1164.17,0.00011095,2]
[352667891,1739223049107,-585.84,0.00011095,2]
[352667892,1739223049117,-1181.65,0.00011095,2]
[352667893,1739223049127,-1076.57,0.00011095,2]
[352667894,1739223049137,-1030.3,0.00011095,2]
[352667895,1739223049147,-500.0,0.00011095,2]
[352667896,1739223049157,-500.0,0.00011095,2]
[352667897,1739223049167,-1713.79,0.00011095,2]
[352667898,1739223049177,-500.0,0.00011095,2]
[352667899,1739223049188,-725.12,0.00011095,2]
[352667900,1739223049198,-500.0,0.00011095,2]
[352667901,1739223049208,-1767.58,0.00011095,2]
[352667902,1739223049218,-2354.99,0.00011095,2]
[352667903,1739223049228,-1498.72,0.00011095,2]
[352667904,1739223049237,-807.84,0.00011095,2]
[352667905,1739223049247,-1343.72,0.00011095,2]
[352667906,1739223049257,-209.50271332,0.00011117,2]
[352667907,1739223049266,-500.0,0.00011135,2]
[352667908,1739223049276,-500.0,0.00011136,2]
[352667909,1739223049286,-415.36413083,0.00011136,2]
[352667910,1739223049295,-500.0,0.00011136,2]
[352667911,1739223049304,-500.0,0.00011136,2]
[352667912,1739223049313,-500.0,0.00011136,2]
[352667913,1739223049323,-626.56,0.00011136,2]
[352667914,1739223049332,-500.0,0.00011136,2]
[352667915,1739223049342,-500.0,0.00011136,2]
[352667916,1739223049352,-509.6,0.00011136,2]
[352667917,1739223049363,-500.0,0.00011136,2]
[352667918,1739223049373,-593.88,0.00011136,2]
[352667919,1739223049383,-500.0,0.00011136,2]
[352667920,1739223049393,-500.0,0.00011136,2]
[352667921,1739223049402,-500.0,0.00011136,2]
[352667922,1739223049412,-500.0,0.00011136,2]
[352667923,1739223049421,-525.25,0.00011136,2]
[352667924,1739223049432,-417.6872087,0.00011136,2]
[352667925,1739223049442,-500.0,0.00011136,2]
[352667926,1739223049452,-500.0,0.00011136,2]
[352667927,1739223049462,-500.0,0.00011136,2]
[352667928,1739223049471,-500.0,0.00011136,2]
[352667929,1739223049483,-669.74,0.00011136,2]
[352667930,1739223049492,-500.0,0.00011136,2]
[352667931,1739223049502,-640.0,0.00011136,2]
[352667932,1739223049513,-500.0,0.00011136,2]
[352667933,1739223049522,-500.0,0.00011136,2]
[352667934,1739223049531,-500.0,0.00011136,2]
[352667935,1739223049541,-500.0,0.00011136,2]
[352667936,1739223049551,-648.62,0.00011136,2]
[352667937,1739223049560,-773.62,0.00011136,2]
[352667938,1739223049569,-500.0,0.00011136,2]
[352667939,1739223049578,-500.0,0.00011136,2]
[352667940,1739223049592,-622.43,0.00011136,2]
[352667941,1739223049669,-500.0,0.00011136,2]
[352667942,1739223049679,-500.0,0.00011136,2]
[352667943,1739223049688,-506.1,0.00011136,2]
[352667944,1739223049697,-631.31963224,0.00011136,2]
[352667945,1739223049706,-500.0,0.00011136,2]
[352667946,1739223049715,-500.0,0.00011136,2]
[352667947,1739223049724,-500.0,0.00011136,2]
[352667948,1739223049734,-500.0,0.00011136,2]
[352667949,1739223049743,-246.43542292,0.00011136,2]
[352667950,1739223049751,-500.0,0.00011136,2]
[352667951,1739223049761,-500.0,0.00011136,2]
[352667952,1739223049770,-500.0,0.00011136,2]
[352667953,1739223049779,-533.29,0.00011136,2]
[352667954,1739223049788,-500.0,0.00011136,2]
[352667955,1739223049797,-500.0,0.00011136,2]
[352667956,1739223049807,-500.0,0.00011136,2]
[352667957,1739223049816,-414.0713578,0.00011136,2]
[352667958,1739223049825,-500.0,0.00011136,2]
[352667959,1739223049834,-500.0,0.00011136,2]
[352667960,1739223049843,-647.11,0.00011136,2]
[352667961,1739223049852,-500.0,0.00011136,2]
[352667962,1739223049862,-500.0,0.00011136,2]
[352667963,1739223049871,-500.0,0.00011136,2]
[352667964,1739223049880,-605.41,0.00011136,2]
[352667965,1739223049890,-500.0,0.00011136,2]
[352667966,1739223049899,-500.0,0.00011136,2]
[352667967,1739223049909,-500.0,0.00011136,2]
[352667968,1739223049918,-735.26,0.00011136,2]
[352667969,1739223049927,-500.0,0.00011136,2]
[352667970,1739223049936,-701.37,0.00011136,2]
[352667971,1739223049946,-576.06,0.00011136,2]
[352667972,1739223049955,-500.0,0.00011136,2]
[352667973,1739223049965,-711.85,0.00011136,2]
[352667974,1739223049975,-500.0,0.00011136,2]
[352667975,1739223049984,-500.0,0.00011136,2]
[352667976,1739223049994,-560.23,0.00011136,2]
[352667977,1739223050003,-564.41,0.00011136,2]
[352667978,1739223050012,-545.05,0.00011136,2]
[352667979,1739223050022,-500.0,0.00011136,2]
[352667980,1739223050031,-500.0,0.00011136,2]
[352667981,1739223050041,-964.27,0.00011136,2]
[352667982,1739223050051,-500.0,0.00011136,2]
[352667983,1739223050060,-500.0,0.00011136,2]
[352667984,1739223050069,-500.0,0.00011136,2]
[352667985,1739223050079,-500.0,0.00011136,2]
[352667986,1739223050088,-500.0,0.00011136,2]
[352667987,1739223050098,-500.0,0.00011136,2]
[352667988,1739223050107,-500.0,0.00011136,2]
[352667989,1739223050117,-636.28,0.00011136,2]
[352667990,1739223050126,-500.0,0.00011136,2]
[352667991,1739223050136,-500.0,0.00011136,2]
[352667992,1739223050146,-500.0,0.00011136,2]
[352667993,1739223050156,-500.0,0.00011136,2]
[352667994,1739223050166,-500.0,0.00011136,2]
[352667995,1739223050176,-500.0,0.00011136,2]
[352667996,1739223050186,-500.0,0.00011136,2]
[352667997,1739223050196,-500.0,0.00011136,2]
[352667998,1739223050205,-500.0,0.00011136,2]
[352667999,1739223050214,-500.0,0.00011136,2]
[352668000,1739223050224,-1596.3,0.00011136,2]
[352668001,1739223050234,-1580.54,0.00011136,2]
[352668002,1739223050245,-500.0,0.00011136,2]
[352668003,1739223050254,-1294.72,0.00011136,2]
[352668004,1739223050264,-1287.84,0.00011136,2]
[352668005,1739223050273,-4275.83,0.00011136,2]
[352668006,1739223050283,-5985.52,0.00011136,2]
[352668007,1739223050293,-640.5,0.00011136,2]
[352668008,1739223050303,-1465.31,0.00011136,2]
[352668009,1739223050313,-500.0,0.00011136,7]
[352668010,1739223050323,-1101.86,0.00011136,2]
[352668011,1739223050332,-500.0,0.00011136,2]
[352668012,1739223050342,-563.22,0.00011136,2]
[352668013,1739223050351,-607.93,0.00011136,2]
[352668014,1739223050362,-1073.81,0.00011136,2]
[352668015,1739223050371,-1919.42,0.00011136,2]
[352668016,1739223050381,-584.64,0.00011136,2]
[352668017,1739223050391,-500.0,0.00011136,2]
[352668018,1739223050400,-835.66,0.00011136,2]
[352668019,1739223050410,-1573.0,0.00011136,2]
[352668020,1739223050420,-500.0,0.00011136,2]
[352668021,1739223050430,-500.0,0.00011136,2]
[352668022,1739223050443,-230.46237171,0.00011136,2]
[352668023,1739223050453,-1810.15,0.00011136,2]
[352668024,1739223050463,-500.0,0.00011136,2]
[352668025,1739223050472,-1410.81,0.00011136,2]
[352668026,1739223050484,-500.0,0.00011136,2]
[352668027,1739223050494,-1392.03,0.00011136,2]
[352668028,1739223050503,-500.0,0.00011136,2]
[352668029,1739223050515,-500.0,0.00011136,2]
[352668030,1739223050524,-500.0,0.00011136,2]
[352668031,1739223050534,-500.0,0.00011136,2]
[352668032,1739223050543,-1667.64,0.00011136,2]
[352668033,1739223050552,-150.093,0.00011166,2]
[352668034,1739223050561,-200.2,0.00011168,2]
[352668035,1739223050571,-1827.0,0.00011174,2]
[352668036,1739223050580,-907.0,0.00011174,2]
[352668037,1739223050589,-783.0,0.00011174,2]
[352668038,1739223050598,-1265.0,0.00011174,2]
[352668039,1739223050607,-2955.0,0.00011174,2]
[352668040,1739223050616,-4025.0,0.00011174,2]
[352668041,1739223050625,-539.0,0.00011174,2]
[352668042,1739223050634,-1109.0,0.00011174,2]
[352668043,1739223050643,-1273.0,0.00011174,2]
[352668044,1739223050653,-3914.0,0.00011174,2]
[352668045,1739223050662,-302.0,0.00011174,2]
[352668046,1739223050671,-150.0,0.00011174,2]
[352668047,1739223050680,-2024.0,0.00011174,2]
[352668048,1739223050689,-1000.0,0.000112,2]
[352668049,1739223050698,-162.15,0.00011227,2]
[352668050,1739223050707,-500.0,0.00011231,2]
[352668051,1739223050716,-500.0,0.00011231,2]
[352668052,1739223050725,-490.75,0.00011231,2]
[352668053,1739223050735,-500.0,0.00011232,2]
[352668054,1739223050744,-500.0,0.00011232,2]
[352668055,1739223050753,-533.89,0.00011232,2]
[352668056,1739223050762,-500.0,0.00011232,2]
[352668057,1739223050771,-771.35,0.00011232,2]
[352668058,1739223050780,-500.0,0.00011232,2]
[352668059,1739223050789,-580.59,0.00011232,2]
[352668060,1739223050798,-500.0,0.00011232,2]
[352668061,1739223050807,-537.97,0.00011232,2]
[352668062,1739223050816,-500.0,0.00011232,2]
[352668063,1739223050825,-269.75786759,0.00011232,2]
[352668064,1739223050835,-500.0,0.00011232,2]
[352668065,1739223050844,-177.57734217,0.00011232,2]
[352668066,1739223050853,-500.0,0.00011232,2]
[352668067,1739223050862,-621.32,0.00011232,2]
[352668068,1739223050871,-1275.47,0.00011232,2]
[352668069,1739223050880,-500.0,0.00011232,2]
[352668070,1739223050889,-710.96,0.00011232,2]
[352668071,1739223050898,-500.0,0.00011232,2]
[352668072,1739223050908,-500.0,0.00011232,2]
[352668073,1739223050917,-847.04,0.00011232,2]
[352668074,1739223050926,-500.0,0.00011232,2]
[352668075,1739223050935,-1149.22,0.00011232,2]
[352668076,1739223050944,-766.45,0.00011232,2]
[352668077,1739223050953,-654.46,0.00011232,2]
[352668078,1739223050963,-562.39,0.00011232,2]
[352668079,1739223050972,-578.92,0.00011232,2]
[352668080,1739223050981,-1026.41,0.00011232,2]
[352668081,1739223050991,-1200.0,0.00011232,2]
[352668082,1739223051001,-1067.65,0.00011232,2]
[352668083,1739223051010,-1200.0,0.00011232,2]
[352668084,1739223051020,-591.84,0.00011232,2]
[352668085,1739223051029,-500.0,0.00011232,2]
[352668086,1739223051038,-712.14,0.00011232,2]
[352668087,1739223051047,-500.0,0.00011232,2]
[352668088,1739223051057,-694.23,0.00011232,2]
[352668089,1739223051066,-305.52273619,0.00011232,2]
[352668090,1739223051075,-976.59,0.00011232,2]
[352668091,1739223051084,-500.0,0.00011232,2]
[352668092,1739223051093,-548.16,0.00011232,2]
[352668093,1739223051103,-632.93,0.00011232,2]
[352668094,1739223051112,-723.41,0.00011232,2]
[352668095,1739223051121,-731.07,0.00011232,2]
[352668096,1739223051130,-857.7,0.00011232,2]
[352668097,1739223051139,-500.0,0.00011232,2]
[352668098,1739223051148,-987.98,0.00011232,2]
[352668099,1739223051157,-930.11,0.00011232,2]
[352668100,1739223051166,-562.96,0.00011232,2]
[352668101,1739223051175,-505.72,0.00011232,2]
[352668102,1739223051185,-500.0,0.00011232,2]
[352668103,1739223051194,-500.0,0.00011232,2]
[352668104,1739223051203,-500.0,0.00011232,2]
[352668105,1739223051212,-815.72,0.00011232,2]
[352668106,1739223051221,-966.75,0.00011232,2]
[352668107,1739223051231,-500.0,0.00011232,2]
[352668108,1739223051243,-654.68,0.00011232,2]
[352668109,1739223051252,-715.54,0.00011232,2]
[352668110,1739223051261,-500.0,0.00011232,2]
[352668111,1739223051270,-500.0,0.00011232,2]
[352668112,1739223051279,-667.78,0.00011232,2]
[352668113,1739223051288,-764.57,0.00011232,2]
[352668114,1739223051298,-994.77,0.00011232,2]
[352668115,1739223051307,-966.84,0.00011232,2]
[352668116,1739223051316,-500.0,0.00011232,2]
[352668117,1739223051325,-500.0,0.00011232,2]
[352668118,1739223051334,-500.0,0.00011232,2]
[352668119,1739223051343,-500.0,0.00011232,2]
[352668120,1739223051352,-893.02,0.00011232,2]
[352668121,1739223051368,-500.0,0.00011232,2]
[352668122,1739223051377,-500.0,0.00011232,2]
[352668123,1739223051387,-897.65,0.00011232,2]
[352668124,1739223051396,-783.253371,0.00011232,2]
[352668125,1739223051405,-764.03,0.00011232,2]
[352668126,1739223051414,-500.0,0.00011232,2]
[352668127,1739223051423,-626.63,0.00011232,2]
[352668128,1739223051434,-549.56,0.00011232,2]
[352668129,1739223051444,-876.94,0.00011232,2]
[352668130,1739223051454,-795.622801,0.00011232,2]
[352668131,1739223051463,-734.53,0.00011232,2]
[352668132,1739223051472,-500.0,0.00011232,2]
[352668133,1739223051482,-836.91,0.00011232,2]
[352668134,1739223051492,-973.12,0.00011232,2]
[352668135,1739223051501,-1305.72,0.00011232,2]
[352668136,1739223051512,-502.25148097,0.00011232,2]
[352668137,1739223051522,-500.0,0.00011232,2]
[352668138,1739223051531,-1052.52,0.00011232,2]
[352668139,1739223051540,-500.0,0.00011232,2]
[352668140,1739223051549,-500.0,0.00011232,2]
[352668141,1739223051559,-788.95,0.00011232,2]
[352668142,1739223051568,-500.0,0.00011232,2]
[352668143,1739223051578,-555.44,0.00011232,2]
[352668144,1739223051587,-500.0,0.00011232,2]
[352668145,1739223051596,-652.37,0.00011232,2]
[352668146,1739223051604,-631.35,0.00011232,2]
[352668147,1739223051613,-599.63,0.00011232,2]
[352668148,1739223051622,-673.04,0.00011232,2]
[352668149,1739223051631,-583.08,0.00011232,2]
[352668150,1739223051641,-500.0,0.00011232,2]
[352668151,1739223051650,-500.0,0.00011232,2]
[352668152,1739223051659,-623.4,0.00011232,2]
[352668153,1739223051669,-500.0,0.00011232,2]
[352668154,1739223051678,-720.38,0.00011232,2]
[352668155,1739223051687,-500.0,0.00011232,2]
[352668156,1739223051696,-1013.69,0.00011232,2]
[352668157,1739223051706,-608.35,0.00011232,2]
[352668158,1739223051715,-1139.54,0.00011232,2]
[352668159,1739223051724,-569.63,0.00011232,2]
[352668160,1739223051733,-585.97,0.00011232,2]
[352668161,1739223051742,-740.91,0.00011232,2]
[352668162,1739223051751,-664.75,0.00011232,2]
[352668163,1739223051760,-972.16,0.00011232,2]
[352668164,1739223051770,-1065.4,0.00011232,2]
[352668165,1739223051779,-500.0,0.00011232,2]
[352668166,1739223051788,-863.01,0.00011232,2]
[352668167,1739223051797,-717.82,0.00011232,2]
[352668168,1739223051806,-1087.43,0.00011232,2]
[352668169,1739223051816,-500.0,0.00011232,2]
[352668170,1739223051825,-973.87,0.00011232,2]
[352668171,1739223051835,-743.82,0.00011232,2]
[352668172,1739223051844,-887.42,0.00011232,2]
[352668173,1739223051853,-500.0,0.00011232,2]
[352668174,1739223051862,-905.97,0.00011232,2]
[352668175,1739223051871,-550.32,0.00011232,2]
[352668176,1739223051880,-527.45,0.00011232,2]
[352668177,1739223051889,-1037.21,0.00011232,2]
[352668178,1739223051905,-597.08,0.00011232,2]
[352668179,1739223051915,-500.0,0.00011232,2]
[352668180,1739223051925,-500.0,0.00011232,2]
[352668181,1739223051935,-620.66,0.00011232,2]
[352668182,1739223051944,-735.35,0.00011232,2]
[352668183,1739223051953,-1287.24,0.00011232,2]
[352668184,1739223051962,-909.42,0.00011232,2]
[352668185,1739223051972,-757.27,0.00011232,2]
[352668186,1739223051981,-500.0,0.00011232,2]
[352668187,1739223051990,-841.49,0.00011232,2]
[352668188,1739223051999,-919.55,0.00011232,2]
[352668189,1739223052008,-943.49,0.00011232,2]
[352668190,1739223052017,-500.0,0.00011232,2]
[352668191,1739223052026,-2030.75,0.00011232,2]
[352668192,1739223052035,-571.42,0.00011232,2]
[352668193,1739223052045,-500.0,0.00011232,2]